[Event "RUS-ch Blitz 2021"]
[Site "Sochi"]
[Date "2021.10.11"]
[Round "5.23"]
[White "Pershin, Denis"]
[Black "Nesterov, Arseniy"]
[Result "1-0"]
[ECO "D36"]
[WhiteElo "2388"]
[BlackElo "2514"]
[Annotator "ChessBase"]
[PlyCount "159"]
[EventDate "2021.10.11"]
[EventType "blitz"]
[EventCountry "RUS"]
[SourceTitle "playchess.com"]
[Source "ChessBase"]
[SourceQuality "1"]
[TimeControl "180+2"]

1. d4 {[%emt 0:00:00]} d5 {[%emt 0:00:05]} 2. c4 {[%emt 0:00:03]} e6 {[%emt 0:
00:00]} 3. Nc3 {[%emt 0:00:07]} Nf6 {[%emt 0:00:00]} 4. cxd5 {[%emt 0:00:00]}
exd5 {[%emt 0:00:01]} 5. Bg5 {[%emt 0:00:00]} c6 {[%emt 0:00:05]} 6. Qc2 {
[%emt 0:00:00]} Be7 {[%emt 0:00:03]} 7. e3 {[%emt 0:00:01]} O-O {[%emt 0:00:00]
} 8. Bd3 {[%emt 0:00:06]} Nbd7 {[%emt 0:00:06]} 9. Nf3 {[%emt 0:00:00]} h6 {
[%emt 0:00:03]} 10. Bh4 {[%emt 0:00:05]} Re8 {[%emt 0:00:03]} 11. O-O {[%emt 0:
00:09]} Ne4 {[%emt 0:00:03]} 12. Bxe7 {[%emt 0:00:04]} Qxe7 {[%emt 0:00:00]}
13. Nd2 {[%emt 0:00:47]} Nd6 {[%emt 0:00:28]} 14. Rae1 {[%emt 0:00:02]} Nf8 {
[%emt 0:00:24]} 15. e4 {[%emt 0:00:22]} dxe4 {[%emt 0:00:04]} 16. Ndxe4 {
[%emt 0:00:00]} Be6 {[%emt 0:00:16]} 17. Nc5 {[%emt 0:00:08]} Qf6 {[%emt 0:00:
05]} 18. Nxe6 {[%emt 0:00:09]} Nxe6 {[%emt 0:00:07]} 19. d5 {[%emt 0:00:02]}
Nd4 {[%emt 0:00:17]} 20. Qd1 {[%emt 0:00:10]} c5 {[%emt 0:00:03]} 21. Rxe8+ {
[%emt 0:00:06]} Rxe8 {[%emt 0:00:05]} 22. Re1 {[%emt 0:00:00]} Rxe1+ {[%emt 0:
00:17]} 23. Qxe1 {[%emt 0:00:01]} g6 {[%emt 0:00:00]} 24. h3 {[%emt 0:00:08]}
h5 {[%emt 0:00:04]} 25. Qe3 {[%emt 0:00:01]} Kg7 {[%emt 0:00:08]} 26. Kf1 {
[%emt 0:00:00]} b6 {[%emt 0:00:03]} 27. Kg1 {[%emt 0:00:00]} b5 {[%emt 0:00:21]
} 28. a3 {[%emt 0:00:06]} a5 {[%emt 0:00:08]} 29. Qe1 {[%emt 0:01:08]} b4 {
[%emt 0:00:08]} 30. axb4 {[%emt 0:00:09]} axb4 {[%emt 0:00:10]} 31. Nd1 {
[%emt 0:00:00]} Qg5 {[%emt 0:00:08]} 32. Kf1 {[%emt 0:00:02]} Qxd5 {[%emt 0:00:
03]} 33. Ne3 {[%emt 0:00:05]} Qe6 {[%emt 0:00:00]} 34. Qd1 {[%emt 0:00:01]} Nc6
{[%emt 0:00:14]} 35. Qc2 {[%emt 0:00:02]} Ne5 {[%emt 0:00:03]} 36. Be2 {
[%emt 0:00:05]} c4 {[%emt 0:00:00]} 37. Qd2 {[%emt 0:00:01]} c3 {[%emt 0:00:03]
} 38. bxc3 {[%emt 0:00:05]} b3 {[%emt 0:00:00]} 39. c4 {[%emt 0:00:02]} Nd7 {
[%emt 0:00:10]} 40. Qb2+ {[%emt 0:00:00]} Qe5 {[%emt 0:00:00]} 41. Qxb3 {
[%emt 0:00:00]} Nc5 {[%emt 0:00:02]} 42. Qd1 {[%emt 0:00:00]} Nde4 {[%emt 0:00:
00]} 43. Kg1 {[%emt 0:00:06]} Qf6 {[%emt 0:00:00]} 44. Qe1 {[%emt 0:00:02]} Qd4
{[%emt 0:00:04]} 45. Bf3 {[%emt 0:00:01]} Nd2 {[%emt 0:00:02]} 46. Bxh5 {
[%emt 0:00:02]} Nde4 {[%emt 0:00:03]} 47. Bf3 {[%emt 0:00:00]} Nf6 {[%emt 0:00:
05]} 48. Qd1 {[%emt 0:00:04]} Qc3 {[%emt 0:00:00]} 49. Be2 {[%emt 0:00:03]}
Nfe4 {[%emt 0:00:01]} 50. Nd5 {[%emt 0:00:01]} Qe5 {[%emt 0:00:03]} 51. Bf3 {
[%emt 0:00:02]} Nd6 {[%emt 0:00:04]} 52. Qe2 {[%emt 0:00:00]} Qa1+ {[%emt 0:00:
00]} 53. Kh2 {[%emt 0:00:02]} Qd4 {[%emt 0:00:02]} 54. Ne3 {[%emt 0:00:04]}
Qe5+ {[%emt 0:00:00]} 55. Kg1 {[%emt 0:00:02]} Qa1+ {[%emt 0:00:02]} 56. Qd1 {
[%emt 0:00:02]} Qe5 {[%emt 0:00:03]} 57. Qd5 {[%emt 0:00:02]} Qxd5 {[%emt 0:00:
03]} 58. Bxd5 {[%emt 0:00:01]} Kf6 {[%emt 0:00:01]} 59. Ng4+ {[%emt 0:00:02]}
Kg5 {[%emt 0:00:01]} 60. g3 {[%emt 0:00:02]} f5 {[%emt 0:00:03]} 61. Ne5 {
[%emt 0:00:04]} Kf6 {[%emt 0:00:00]} 62. Nf3 {[%emt 0:00:01]} Nb3 {[%emt 0:00:
03]} 63. h4 {[%emt 0:00:02]} Nc8 {[%emt 0:00:02]} 64. Kg2 {[%emt 0:00:02]} Nb6
{[%emt 0:00:00]} 65. Bg8 {[%emt 0:00:03]} Kg7 {[%emt 0:00:03]} 66. Bd5 {
[%emt 0:00:00]} Kf6 {[%emt 0:00:00]} 67. Kf1 {[%emt 0:00:04]} Na5 {[%emt 0:00:
01]} 68. Nd2 {[%emt 0:00:03]} Ke5 {[%emt 0:00:02]} 69. f4+ {[%emt 0:00:01]} Kf6
{[%emt 0:00:03]} 70. Ke2 {[%emt 0:00:02]} Nd7 {[%emt 0:00:04]} 71. Kd3 {
[%emt 0:00:01]} Nc5+ {[%emt 0:00:02]} 72. Kd4 {[%emt 0:00:02]} Nd7 {[%emt 0:00:
03]} 73. c5 {[%emt 0:00:01]} Ke7 {[%emt 0:00:02]} 74. Nb3 {[%emt 0:00:03]}
Nxb3+ {[%emt 0:00:01]} 75. Bxb3 {[%emt 0:00:01]} Nf6 {[%emt 0:00:00]} 76. Bd1 {
[%emt 0:00:06]} Ne4 {[%emt 0:00:00]} 77. g4 {[%emt 0:00:02]} Nf2 {[%emt 0:00:
01]} 78. gxf5 {[%emt 0:00:00]} gxf5 {[%emt 0:00:02]} 79. Bf3 {[%emt 0:00:01]}
Nh3 {[%emt 0:00:03]} 80. Ke5 {[%emt 0:00:01]} 1-0

[Event "RUS-ch Blitz 2021"]
[Site "Sochi"]
[Date "2021.10.11"]
[Round "5.24"]
[White "Grebnev, Aleksey"]
[Black "Makarian, Rudik"]
[Result "0-1"]
[ECO "A45"]
[WhiteElo "2469"]
[BlackElo "2470"]
[Annotator "ChessBase"]
[PlyCount "74"]
[EventDate "2021.10.11"]
[EventType "blitz"]
[EventCountry "RUS"]
[SourceTitle "playchess.com"]
[Source "ChessBase"]
[SourceQuality "1"]
[TimeControl "180+2"]

1. d4 {[%emt 0:00:06]} Nf6 {[%emt 0:00:00]} 2. Bf4 {[%emt 0:00:00]} c5 {
[%emt 0:00:00]} 3. e3 {[%emt 0:00:05]} Nd5 {[%emt 0:00:00]} 4. Bg3 {[%emt 0:00:
00]} Qb6 {[%emt 0:00:00]} 5. Nc3 {[%emt 0:00:00]} Nxc3 {[%emt 0:00:09]} 6. bxc3
{[%emt 0:00:00]} d6 {[%emt 0:00:00]} 7. Bd3 {[%emt 0:00:01]} Nc6 {[%emt 0:00:
11]} 8. Nf3 {[%emt 0:00:00]} g6 {[%emt 0:00:01]} 9. O-O {[%emt 0:00:09]} Bg7 {
[%emt 0:00:00]} 10. Qd2 {[%emt 0:00:08]} O-O {[%emt 0:00:05]} 11. Rab1 {
[%emt 0:00:20]} Qd8 {[%emt 0:00:00]} 12. h3 {[%emt 0:00:08]} b6 {[%emt 0:00:07]
} 13. d5 {[%emt 0:00:09]} Na5 {[%emt 0:00:08]} 14. Rfe1 {[%emt 0:00:16]} e5 {
[%emt 0:00:15]} 15. e4 {[%emt 0:00:23]} f5 {[%emt 0:00:39]} 16. c4 {[%emt 0:00:
12]} f4 {[%emt 0:00:05]} 17. Bh2 {[%emt 0:00:00]} g5 {[%emt 0:00:12]} 18. Qe2 {
[%emt 0:00:08]} h5 {[%emt 0:00:08]} 19. Nd2 {[%emt 0:00:08]} g4 {[%emt 0:00:00]
} 20. Nb3 {[%emt 0:00:23]} Nb7 {[%emt 0:00:10]} 21. Kh1 {[%emt 0:00:44]} Rf6 {
[%emt 0:00:09]} 22. f3 {[%emt 0:00:07]} Rg6 {[%emt 0:00:19]} 23. Qd2 {[%emt 0:
00:13]} Qh4 {[%emt 0:00:40]} 24. Bf1 {[%emt 0:00:04]} Bd7 {[%emt 0:00:09]} 25.
Qe2 {[%emt 0:00:01]} Bf6 {[%emt 0:00:04]} 26. Red1 {[%emt 0:00:06]} Kf7 {
[%emt 0:00:10]} 27. Bg1 {[%emt 0:00:03]} gxh3 {[%emt 0:00:06]} 28. gxh3 {
[%emt 0:00:00]} Rxg1+ {[%emt 0:00:07]} 29. Kxg1 {[%emt 0:00:00]} Rg8+ {[%emt 0:
00:00]} 30. Kh1 {[%emt 0:00:00]} Rg3 {[%emt 0:00:03]} 31. Qh2 {[%emt 0:00:06]}
Rxf3 {[%emt 0:00:00]} 32. Rd2 {[%emt 0:00:02]} Re3 {[%emt 0:00:05]} 33. Rf2 {
[%emt 0:00:03]} Rxe4 {[%emt 0:00:00]} 34. Nd2 {[%emt 0:00:00]} Re3 {[%emt 0:00:
02]} 35. Bg2 {[%emt 0:00:03]} Qxf2 {[%emt 0:00:00]} 36. Ne4 {[%emt 0:00:02]}
Qxc2 {[%emt 0:00:07]} 37. Rg1 {[%emt 0:00:00]} Rxe4 {[%emt 0:00:01]} 0-1

[Event "RUS-ch Blitz 2021"]
[Site "Sochi"]
[Date "2021.10.11"]
[Round "6.2"]
[White "Dreev, Aleksey"]
[Black "Sakaev, Konstantin"]
[Result "1/2-1/2"]
[ECO "D23"]
[WhiteElo "2635"]
[BlackElo "2603"]
[Annotator "ChessBase"]
[PlyCount "48"]
[EventDate "2021.10.11"]
[EventType "blitz"]
[EventCountry "RUS"]
[SourceTitle "playchess.com"]
[Source "ChessBase"]
[SourceQuality "1"]
[TimeControl "180+2"]

1. d4 {[%emt 0:00:00]} d5 {[%emt 0:00:05]} 2. c4 {[%emt 0:00:01]} c6 {[%emt 0:
00:00]} 3. Nf3 {[%emt 0:00:14]} Nf6 {[%emt 0:00:00]} 4. Qc2 {[%emt 0:00:00]}
dxc4 {[%emt 0:00:04]} 5. Qxc4 {[%emt 0:00:02]} Bf5 {[%emt 0:00:00]} 6. g3 {
[%emt 0:00:05]} e6 {[%emt 0:00:02]} 7. Bg2 {[%emt 0:00:02]} Be7 {[%emt 0:00:03]
} 8. O-O {[%emt 0:00:01]} O-O {[%emt 0:00:11]} 9. e3 {[%emt 0:00:04]} Nbd7 {
[%emt 0:00:00]} 10. Nc3 {[%emt 0:00:06]} Bg6 {[%emt 0:00:14]} 11. Rd1 {[%emt 0:
00:05]} Qc7 {[%emt 0:00:01]} 12. b3 {[%emt 0:00:41]} Rac8 {[%emt 0:00:28]} 13.
Bb2 {[%emt 0:00:06]} Nd5 {[%emt 0:00:34]} 14. Qe2 {[%emt 0:00:14]} Nxc3 {
[%emt 0:00:06]} 15. Bxc3 {[%emt 0:00:00]} c5 {[%emt 0:00:02]} 16. d5 {[%emt 0:
00:31]} exd5 {[%emt 0:00:04]} 17. Rxd5 {[%emt 0:00:01]} Bf6 {[%emt 0:00:02]}
18. Rad1 {[%emt 0:00:16]} Rcd8 {[%emt 0:00:37]} 19. Bxf6 {[%emt 0:00:25]} Nxf6
{[%emt 0:00:01]} 20. Rxd8 {[%emt 0:00:03]} Rxd8 {[%emt 0:00:00]} 21. Rxd8+ {
[%emt 0:00:00]} Qxd8 {[%emt 0:00:00]} 22. Ne5 {[%emt 0:00:05]} Qc7 {[%emt 0:00:
18]} 23. Nxg6 {[%emt 0:00:14]} hxg6 {[%emt 0:00:00]} 24. Qd3 {[%emt 0:00:12]}
Qd8 {[%emt 0:00:03]} 1/2-1/2

[Event "RUS-ch Blitz 2021"]
[Site "Sochi"]
[Date "2021.10.11"]
[Round "6.3"]
[White "Pridorozhni, Aleksei"]
[Black "Sjugirov, Sanan"]
[Result "1/2-1/2"]
[ECO "B30"]
[WhiteElo "2564"]
[BlackElo "2663"]
[Annotator "ChessBase"]
[PlyCount "61"]
[EventDate "2021.10.11"]
[EventType "blitz"]
[EventCountry "RUS"]
[SourceTitle "playchess.com"]
[Source "ChessBase"]
[SourceQuality "1"]
[TimeControl "180+2"]

1. e4 {[%emt 0:00:00]} c5 {[%emt 0:00:05]} 2. Nc3 {[%emt 0:00:01]} Nc6 {
[%emt 0:00:00]} 3. Bb5 {[%emt 0:00:12]} Nd4 {[%emt 0:00:00]} 4. Bc4 {[%emt 0:
00:00]} a6 {[%emt 0:00:16]} 5. Nf3 {[%emt 0:00:00]} e6 {[%emt 0:00:14]} 6. a4 {
[%emt 0:00:06]} Qc7 {[%emt 0:00:07]} 7. d3 {[%emt 0:00:02]} Nf6 {[%emt 0:00:10]
} 8. Nxd4 {[%emt 0:00:06]} cxd4 {[%emt 0:00:01]} 9. Ne2 {[%emt 0:00:02]} Nxe4 {
[%emt 0:00:11]} 10. Nxd4 {[%emt 0:00:00]} Bb4+ {[%emt 0:00:10]} 11. Kf1 {
[%emt 0:00:17]} Nf6 {[%emt 0:00:04]} 12. Bg5 {[%emt 0:00:30]} Be7 {[%emt 0:00:
00]} 13. Qe2 {[%emt 0:00:10]} O-O {[%emt 0:00:09]} 14. Nf5 {[%emt 0:00:10]} Bd8
{[%emt 0:00:21]} 15. Ng3 {[%emt 0:00:05]} d5 {[%emt 0:00:07]} 16. Bb3 {[%emt 0:
00:01]} Be7 {[%emt 0:00:16]} 17. Re1 {[%emt 0:00:18]} Re8 {[%emt 0:00:06]} 18.
h4 {[%emt 0:00:18]} Bd7 {[%emt 0:00:02]} 19. Nh5 {[%emt 0:00:06]} Nxh5 {
[%emt 0:00:07]} 20. Qxh5 {[%emt 0:00:00]} Bf8 {[%emt 0:00:03]} 21. Rh3 {
[%emt 0:00:24]} b5 {[%emt 0:00:13]} 22. axb5 {[%emt 0:00:04]} Bxb5 {[%emt 0:00:
00]} 23. Rg3 {[%emt 0:00:12]} a5 {[%emt 0:00:01]} 24. Bf6 {[%emt 0:00:10]} g6 {
[%emt 0:00:08]} 25. Qe2 {[%emt 0:00:00]} a4 {[%emt 0:00:08]} 26. Ba2 {[%emt 0:
00:02]} Qf4 {[%emt 0:00:28]} 27. Rf3 {[%emt 0:00:15]} Qh2 {[%emt 0:00:04]} 28.
Rh3 {[%emt 0:00:00]} Qf4 {[%emt 0:00:01]} 29. Rf3 {[%emt 0:00:07]} Qh2 {
[%emt 0:00:16]} 30. Rh3 {[%emt 0:00:00]} Qf4 {[%emt 0:00:00]} 31. Rf3 {[%emt 0:
00:11]} 1/2-1/2

[Event "RUS-ch Blitz 2021"]
[Site "Sochi"]
[Date "2021.10.11"]
[Round "6.4"]
[White "Tsydypov, Zhamsaran"]
[Black "Antipov, Mikhail Al."]
[Result "0-1"]
[ECO "A34"]
[WhiteElo "2526"]
[BlackElo "2619"]
[Annotator "ChessBase"]
[PlyCount "96"]
[EventDate "2021.10.11"]
[EventType "blitz"]
[EventCountry "RUS"]
[SourceTitle "playchess.com"]
[Source "ChessBase"]
[SourceQuality "1"]
[TimeControl "180+2"]

1. Nf3 {[%emt 0:00:00]} Nf6 {[%emt 0:00:06]} 2. c4 {[%emt 0:00:04]} c5 {
[%emt 0:00:00]} 3. Nc3 {[%emt 0:00:00]} g6 {[%emt 0:00:05]} 4. e4 {[%emt 0:00:
02]} d6 {[%emt 0:00:01]} 5. h3 {[%emt 0:00:06]} Nc6 {[%emt 0:00:00]} 6. d4 {
[%emt 0:00:09]} cxd4 {[%emt 0:00:00]} 7. Nxd4 {[%emt 0:00:00]} Nxd4 {[%emt 0:
00:06]} 8. Qxd4 {[%emt 0:00:00]} Bg7 {[%emt 0:00:00]} 9. Qe3 {[%emt 0:00:05]}
Be6 {[%emt 0:00:13]} 10. Rb1 {[%emt 0:00:02]} Qb6 {[%emt 0:00:10]} 11. Be2 {
[%emt 0:00:11]} Nd7 {[%emt 0:00:10]} 12. Nb5 {[%emt 0:00:37]} O-O {[%emt 0:00:
13]} 13. O-O {[%emt 0:00:11]} Rfc8 {[%emt 0:00:10]} 14. b3 {[%emt 0:00:10]} a6
{[%emt 0:00:06]} 15. Qxb6 {[%emt 0:00:11]} Nxb6 {[%emt 0:00:00]} 16. Na3 {
[%emt 0:00:03]} Nd7 {[%emt 0:00:01]} 17. Be3 {[%emt 0:00:08]} b5 {[%emt 0:00:
19]} 18. Rfc1 {[%emt 0:00:08]} b4 {[%emt 0:00:00]} 19. Nc2 {[%emt 0:00:00]} a5
{[%emt 0:00:00]} 20. Nd4 {[%emt 0:00:04]} Nc5 {[%emt 0:00:03]} 21. Bf3 {
[%emt 0:00:31]} Ra6 {[%emt 0:00:23]} 22. Rd1 {[%emt 0:00:07]} a4 {[%emt 0:00:
07]} 23. Nxe6 {[%emt 0:00:17]} fxe6 {[%emt 0:00:07]} 24. Bg4 {[%emt 0:00:20]}
Kf7 {[%emt 0:00:00]} 25. Bxc5 {[%emt 0:00:08]} dxc5 {[%emt 0:00:13]} 26. Rd7 {
[%emt 0:00:06]} Bd4 {[%emt 0:00:08]} 27. Bd1 {[%emt 0:00:06]} axb3 {[%emt 0:00:
15]} 28. Bxb3 {[%emt 0:00:00]} Rb8 {[%emt 0:00:26]} 29. Rd1 {[%emt 0:00:09]} e5
{[%emt 0:00:00]} 30. Rd2 {[%emt 0:00:02]} Ke8 {[%emt 0:00:05]} 31. Rd5 {
[%emt 0:00:05]} e6 {[%emt 0:00:11]} 32. R2xd4 {[%emt 0:00:00]} cxd4 {[%emt 0:
00:25]} 33. Rxe5 {[%emt 0:00:00]} d3 {[%emt 0:00:02]} 34. Kf1 {[%emt 0:00:00]}
Rd8 {[%emt 0:00:01]} 35. Ke1 {[%emt 0:00:00]} d2+ {[%emt 0:00:03]} 36. Kd1 {
[%emt 0:00:01]} Ke7 {[%emt 0:00:02]} 37. Rb5 {[%emt 0:00:00]} Rd3 {[%emt 0:00:
02]} 38. Rxb4 {[%emt 0:00:04]} Rad6 {[%emt 0:00:00]} 39. f3 {[%emt 0:00:02]}
Rc3 {[%emt 0:00:03]} 40. Rb7+ {[%emt 0:00:03]} Kf6 {[%emt 0:00:00]} 41. e5+ {
[%emt 0:00:09]} Kxe5 {[%emt 0:00:01]} 42. Ke2 {[%emt 0:00:00]} Kf4 {[%emt 0:00:
05]} 43. Rb4 {[%emt 0:00:05]} Rd4 {[%emt 0:00:04]} 44. Bd1 {[%emt 0:00:02]}
Re3+ {[%emt 0:00:02]} 45. Kf2 {[%emt 0:00:00]} Re1 {[%emt 0:00:00]} 46. Rb1 {
[%emt 0:00:00]} Rxc4 {[%emt 0:00:00]} 47. g3+ {[%emt 0:00:04]} Ke5 {[%emt 0:00:
03]} 48. Rb5+ {[%emt 0:00:00]} Kf6 {[%emt 0:00:03]} 0-1

[Event "RUS-ch Blitz 2021"]
[Site "Sochi"]
[Date "2021.10.11"]
[Round "6.5"]
[White "Sarana, Alexey"]
[Black "Bocharov, Dmitry"]
[Result "1-0"]
[ECO "D37"]
[WhiteElo "2649"]
[BlackElo "2517"]
[Annotator "ChessBase"]
[PlyCount "49"]
[EventDate "2021.10.11"]
[EventType "blitz"]
[EventCountry "RUS"]
[SourceTitle "playchess.com"]
[Source "ChessBase"]
[SourceQuality "1"]
[TimeControl "180+2"]

1. d4 {[%emt 0:00:00]} Nf6 {[%emt 0:00:05]} 2. c4 {[%emt 0:00:02]} e6 {[%emt 0:
00:00]} 3. Nf3 {[%emt 0:00:00]} d5 {[%emt 0:00:15]} 4. Nc3 {[%emt 0:00:00]} Be7
{[%emt 0:00:00]} 5. Bf4 {[%emt 0:00:00]} O-O {[%emt 0:00:00]} 6. e3 {[%emt 0:
00:00]} b6 {[%emt 0:00:00]} 7. cxd5 {[%emt 0:00:08]} Nxd5 {[%emt 0:00:00]} 8.
Nxd5 {[%emt 0:00:08]} Qxd5 {[%emt 0:00:01]} 9. Bxc7 {[%emt 0:00:00]} Bb4+ {
[%emt 0:00:00]} 10. Nd2 {[%emt 0:00:00]} Nc6 {[%emt 0:00:05]} 11. a3 {[%emt 0:
00:04]} Bxd2+ {[%emt 0:00:02]} 12. Qxd2 {[%emt 0:00:00]} Na5 {[%emt 0:00:15]}
13. Rd1 {[%emt 0:00:18]} Bb7 {[%emt 0:00:03]} 14. Bg3 {[%emt 0:00:08]} Rfc8 {
[%emt 0:00:46]} 15. f3 {[%emt 0:00:14]} Qb3 {[%emt 0:00:46]} 16. Bd3 {[%emt 0:
01:08]} Nc4 {[%emt 0:00:04]} 17. Bxc4 {[%emt 0:00:38]} Rxc4 {[%emt 0:00:00]}
18. O-O {[%emt 0:00:16]} Rc2 {[%emt 0:00:04]} 19. Qb4 {[%emt 0:00:00]} Qxb4 {
[%emt 0:00:15]} 20. axb4 {[%emt 0:00:00]} Rxb2 {[%emt 0:00:00]} 21. Rc1 {
[%emt 0:00:07]} Rxb4 {[%emt 0:00:08]} 22. Rc7 {[%emt 0:00:01]} Bd5 {[%emt 0:00:
01]} 23. e4 {[%emt 0:00:00]} Bc4 {[%emt 0:00:08]} 24. Ra1 {[%emt 0:00:07]} a6 {
[%emt 0:00:50]} 25. Bd6 {[%emt 0:00:00]} 1-0

[Event "RUS-ch Blitz 2021"]
[Site "Sochi"]
[Date "2021.10.11"]
[Round "6.6"]
[White "Alekseev, Evgeny"]
[Black "Riazantsev, Alexander"]
[Result "1/2-1/2"]
[ECO "C77"]
[WhiteElo "2602"]
[BlackElo "2634"]
[Annotator "ChessBase"]
[PlyCount "69"]
[EventDate "2021.10.11"]
[EventType "blitz"]
[EventCountry "RUS"]
[SourceTitle "playchess.com"]
[Source "ChessBase"]
[SourceQuality "1"]
[TimeControl "180+2"]

1. e4 {[%emt 0:00:00]} e5 {[%emt 0:00:00]} 2. Nf3 {[%emt 0:00:07]} Nc6 {
[%emt 0:00:03]} 3. Bb5 {[%emt 0:00:00]} a6 {[%emt 0:00:00]} 4. Ba4 {[%emt 0:00:
00]} Nf6 {[%emt 0:00:00]} 5. d3 {[%emt 0:00:07]} b5 {[%emt 0:00:00]} 6. Bb3 {
[%emt 0:00:00]} Bc5 {[%emt 0:00:00]} 7. Nc3 {[%emt 0:00:00]} h6 {[%emt 0:00:17]
} 8. a3 {[%emt 0:00:05]} d6 {[%emt 0:00:03]} 9. Nd5 {[%emt 0:00:05]} Rb8 {
[%emt 0:00:11]} 10. c3 {[%emt 0:00:05]} Nxd5 {[%emt 0:00:05]} 11. Bxd5 {
[%emt 0:00:00]} Ne7 {[%emt 0:00:00]} 12. Ba2 {[%emt 0:00:02]} O-O {[%emt 0:00:
21]} 13. O-O {[%emt 0:00:20]} Ng6 {[%emt 0:00:07]} 14. h3 {[%emt 0:00:03]} Bb6
{[%emt 0:00:09]} 15. Be3 {[%emt 0:00:14]} Be6 {[%emt 0:00:00]} 16. d4 {[%emt 0:
00:08]} Bxa2 {[%emt 0:00:14]} 17. Rxa2 {[%emt 0:00:00]} c5 {[%emt 0:00:05]} 18.
Ra1 {[%emt 0:00:14]} c4 {[%emt 0:00:25]} 19. Qc2 {[%emt 0:00:10]} Qf6 {[%emt 0:
00:11]} 20. Rfd1 {[%emt 0:00:15]} Rfe8 {[%emt 0:00:21]} 21. a4 {[%emt 0:00:04]}
Nf4 {[%emt 0:00:23]} 22. axb5 {[%emt 0:00:14]} axb5 {[%emt 0:00:00]} 23. Bxf4 {
[%emt 0:00:22]} exf4 {[%emt 0:00:05]} 24. e5 {[%emt 0:00:12]} dxe5 {[%emt 0:00:
23]} 25. Nxe5 {[%emt 0:00:00]} Bc7 {[%emt 0:00:07]} 26. Nf3 {[%emt 0:00:27]} g6
{[%emt 0:00:00]} 27. Re1 {[%emt 0:00:02]} Qc6 {[%emt 0:00:08]} 28. Nd2 {
[%emt 0:00:11]} Kg7 {[%emt 0:00:05]} 29. Nf3 {[%emt 0:00:05]} Bd6 {[%emt 0:00:
05]} 30. Kf1 {[%emt 0:00:00]} b4 {[%emt 0:00:02]} 31. Kg1 {[%emt 0:00:15]} Qd5
{[%emt 0:00:04]} 32. Kf1 {[%emt 0:00:00]} Qc6 {[%emt 0:00:00]} 33. Kg1 {
[%emt 0:00:03]} Qd5 {[%emt 0:00:00]} 34. Kf1 {[%emt 0:00:05]} Bf8 {[%emt 0:00:
02]} 35. Qd1 {[%emt 0:00:00]} 1/2-1/2

[Event "RUS-ch Blitz 2021"]
[Site "Sochi"]
[Date "2021.10.11"]
[Round "6.7"]
[White "Makarian, Rudik"]
[Black "Kobalia, Mikhail"]
[Result "1/2-1/2"]
[ECO "D52"]
[WhiteElo "2470"]
[BlackElo "2600"]
[Annotator "ChessBase"]
[PlyCount "75"]
[EventDate "2021.10.11"]
[EventType "blitz"]
[EventCountry "RUS"]
[SourceTitle "playchess.com"]
[Source "ChessBase"]
[SourceQuality "1"]
[TimeControl "180+2"]

1. d4 {[%emt 0:00:00]} d5 {[%emt 0:00:00]} 2. c4 {[%emt 0:00:07]} c6 {[%emt 0:
00:01]} 3. Nf3 {[%emt 0:00:00]} Nf6 {[%emt 0:00:00]} 4. Nc3 {[%emt 0:00:00]} e6
{[%emt 0:00:00]} 5. Bg5 {[%emt 0:00:08]} Nbd7 {[%emt 0:00:02]} 6. e3 {[%emt 0:
00:00]} h6 {[%emt 0:00:00]} 7. Bf4 {[%emt 0:00:00]} Nh5 {[%emt 0:00:00]} 8.
cxd5 {[%emt 0:00:10]} exd5 {[%emt 0:00:09]} 9. Bd3 {[%emt 0:00:00]} Bb4 {
[%emt 0:00:11]} 10. O-O {[%emt 0:00:08]} Nxf4 {[%emt 0:00:04]} 11. exf4 {
[%emt 0:00:04]} O-O {[%emt 0:00:02]} 12. Qc2 {[%emt 0:00:05]} Re8 {[%emt 0:00:
44]} 13. Rfe1 {[%emt 0:00:00]} Rxe1+ {[%emt 0:00:11]} 14. Rxe1 {[%emt 0:00:05]}
Nf6 {[%emt 0:00:07]} 15. Ne5 {[%emt 0:00:00]} Bd7 {[%emt 0:00:06]} 16. a3 {
[%emt 0:00:07]} Bxc3 {[%emt 0:00:02]} 17. Qxc3 {[%emt 0:00:00]} Rc8 {[%emt 0:
00:00]} 18. h3 {[%emt 0:00:04]} Be8 {[%emt 0:00:04]} 19. b4 {[%emt 0:00:06]}
Qd6 {[%emt 0:00:06]} 20. g4 {[%emt 0:00:10]} Ne4 {[%emt 0:00:21]} 21. Bxe4 {
[%emt 0:00:42]} dxe4 {[%emt 0:00:01]} 22. Rxe4 {[%emt 0:00:07]} f6 {[%emt 0:00:
01]} 23. Nc4 {[%emt 0:00:12]} Qd5 {[%emt 0:00:00]} 24. Qd3 {[%emt 0:00:02]} Bg6
{[%emt 0:00:27]} 25. f5 {[%emt 0:00:00]} Bf7 {[%emt 0:00:00]} 26. Ne3 {[%emt 0:
00:00]} Qa2 {[%emt 0:00:02]} 27. Re7 {[%emt 0:00:03]} Rd8 {[%emt 0:00:01]} 28.
Rxb7 {[%emt 0:00:19]} Qa1+ {[%emt 0:00:00]} 29. Kg2 {[%emt 0:00:27]} Rxd4 {
[%emt 0:00:00]} 30. Qc2 {[%emt 0:00:00]} Qxa3 {[%emt 0:00:40]} 31. Qxc6 {
[%emt 0:00:07]} Qb3 {[%emt 0:00:16]} 32. Qc8+ {[%emt 0:00:10]} Kh7 {[%emt 0:00:
04]} 33. Rb8 {[%emt 0:00:13]} Bg8 {[%emt 0:00:00]} 34. Qc7 {[%emt 0:00:05]}
Rxb4 {[%emt 0:00:03]} 35. Rxb4 {[%emt 0:00:11]} Qxb4 {[%emt 0:00:00]} 36. Qxa7
{[%emt 0:00:03]} Qe4+ {[%emt 0:00:01]} 37. Kg1 {[%emt 0:00:01]} Qf3 {[%emt 0:
00:05]} 38. Qd4 {[%emt 0:00:12]} 1/2-1/2